bitfinex/quotes_SOLUSD_20251019
["timestamp","ask_amount","ask_price","bid_price","bid_amount"]
[1760845992450,0.5,187.24,187.21,0.71]
[1760845993062,0.5,187.24,187.22,0.71]
[1760845994951,0.5,187.24,187.22,0.72]
[1760845995153,0.5,187.24,187.23,0.72]
[1760845996673,3.84043426,187.24,187.19,0.72]
[1760845996885,3.34043426,187.22,187.19,0.72]
[1760845997179,0.5,187.21,187.2,0.72]
[1760845997974,0.5,187.22,187.2,0.72]
[1760845998177,0.5,187.22,187.21,0.72]
[1760845998679,0.5,187.22,187.19,16.78382693]
[1760845998880,0.5,187.22,187.2,0.72]
[1760845999085,0.5,187.22,187.21,0.72]
[1760846001272,3.84043426,187.24,187.21,0.72]
[1760846001480,3.84043426,187.24,187.22,0.72]
[1760846001686,0.5,187.24,187.23,0.72]
[1760846003685,102.1,187.25,187.23,0.72]
[1760846003866,102.1,187.25,187.23,16.78124688]
[1760846004186,102.1,187.25,187.24,0.72]
[1760846004865,0.6,187.29,187.24,25.45984107]
[1760846005065,0.6,187.29,187.25,4.06043426]
[1760846005276,0.6,187.29,187.26,0.72]
[1760846005769,0.6,187.29,187.26,16.77866766]
[1760846005970,0.1,187.29,187.27,0.72]
[1760846006581,0.1,187.29,187.27,4.06043426]
[1760846006782,0.1,187.29,187.28,0.72]
[1760846007173,0.1,187.29,187.24,0.72]
[1760846007174,3.44043426,187.29,187.24,0.72]
[1760846007371,3.34043426,187.26,187.24,3.34043426]
[1760846007574,0.5,187.25,187.24,3.34043426]
[1760846007793,0.5,187.25,187.22,0.72]
[1760846008092,0.5,187.25,187.23,6.06134394]
[1760846008299,0.5,187.25,187.23,0.72]
[1760846008504,3.84043426,187.25,187.22,4.06043426]
[1760846009797,3.34043426,187.23,187.2,0.72]
[1760846009977,3.34043426,187.23,187.2,16.78382693]
[1760846009978,0.5,187.22,187.2,16.78382693]
[1760846010484,3.84043426,187.22,187.2,16.78382693]
[1760846011285,3.84043426,187.22,187.16,5.34276891]
[1760846011489,3.84043426,187.22,187.19,16.06468714]
[1760846011806,3.84043426,187.22,187.19,16.78468714]
[1760846012692,3.84043426,187.22,187.19,0.72]
[1760846012895,3.34043426,187.21,187.19,0.72]
[1760846013095,0.5,187.2,187.18,16.06468714]
[1760846013704,3.84043426,187.2,187.18,16.06468714]
[1760846014092,3.84043426,187.2,187.18,16.78468714]
[1760846015701,3.34043426,187.19,187.17,0.72]
[1760846016201,0.5,187.18,187.17,0.72]
[1760846016507,3.84043426,187.18,187.17,0.72]
[1760846016907,0.5,187.18,187.17,0.72]
[1760846017207,3.34043426,187.19,187.17,0.72]
[1760846017582,102.1,187.24,187.16,16.06726829]
[1760846017583,3.84043426,187.18,187.16,16.06726829]
[1760846017790,3.84043426,187.18,187.16,0.72]
[1760846018021,3.84043426,187.18,187.12,3.34043426]
[1760846018183,3.84043426,187.18,187.17,0.72]
[1760846020000,0.5,187.18,187.17,0.72]
[1760846022015,0.5,187.2,187.17,0.72]
[1760846022188,0.5,187.2,187.17,16.78554743]
[1760846022398,0.5,187.21,187.18,0.72]
[1760846023194,0.5,187.21,187.18,16.78554743]
[1760846023406,0.5,187.21,187.19,0.72]
[1760846024099,0.5,187.21,187.18,16.06554743]
[1760846024302,0.5,187.21,187.19,0.66]
[1760846024509,0.5,187.21,187.2,0.66]
[1760846025319,3.84043426,187.23,187.2,0.66]
[1760846025718,3.84043426,187.23,187.2,16.72382693]
[1760846025909,3.84043426,187.23,187.21,0.66]
[1760846026209,3.84043426,187.23,187.22,0.66]
[1760846026408,3.78043426,187.23,187.22,0.66]
[1760846028517,0.44,187.23,187.22,0.66]
[1760846028725,3.78043426,187.23,187.22,0.66]
[1760846029617,0.44,187.23,187.22,0.66]
[1760846029921,102.1,187.22,187.17,0.66]
[1760846030101,3.34043426,187.19,187.18,0.66]
[1760846032711,3.34043426,187.19,187.17,0.66]
[1760846032915,3.72043426,187.18,187.17,0.66]
[1760846033524,0.38,187.18,187.17,0.66]
[1760846033824,3.34043426,187.18,187.17,0.66]
[1760846036627,3.34043426,187.19,187.17,0.66]
[1760846036925,0.38,187.18,187.17,0.66]
[1760846037625,0.38,187.18,187.17,6.00353308]
[1760846037828,0.38,187.18,187.17,0.66]
[1760846038030,3.34043426,187.19,187.17,0.66]
[1760846038221,3.34043426,187.2,187.17,0.66]
[1760846038527,0.38,187.19,187.17,0.66]
[1760846038826,3.34043426,187.2,187.17,0.66]
[1760846039425,3.34043426,187.2,187.18,16.06554743]
[1760846039627,3.34043426,187.2,187.19,0.66]
[1760846039836,3.72043426,187.21,187.19,0.66]
[1760846040023,3.72043426,187.21,187.2,0.66]
[1760846041211,3.72043426,187.21,187.18,16.06554743]
[1760846041533,3.72043426,187.21,187.19,0.66]
[1760846041732,0.38,187.21,187.19,0.66]
[1760846042317,102.1,187.22,187.19,0.66]
[1760846042510,102.1,187.22,187.19,16.72468714]
[1760846042711,102.1,187.22,187.2,0.66]
[1760846043114,102.1,187.22,187.2,16.72382693]
[1760846043422,102.1,187.22,187.21,0.66]
[1760846044824,102.1,187.22,187.2,0.66]
[1760846045021,0.38,187.21,187.2,0.66]
[1760846045228,102.48,187.22,187.2,0.66]
[1760846047044,102.48,187.22,187.21,0.66]
[1760846048934,102.48,187.22,187.2,16.06382693]
[1760846049133,102.48,187.22,187.2,16.76382693]
[1760846049440,102.48,187.22,187.21,0.7]
[1760846050336,105.82043426,187.22,187.2,16.06382693]
[1760846050522,3.34043426,187.21,187.18,0.7]
[1760846050721,0.38,187.2,187.18,16.76382693]
[1760846051028,0.38,187.2,187.16,0.7]
[1760846051029,3.72043426,187.2,187.16,0.7]
[1760846051231,3.72043426,187.2,187.16,16.76726829]
[1760846051232,3.34043426,187.19,187.16,16.76726829]
[1760846051425,0.38,187.18,187.16,16.76726829]
[1760846051943,0.38,187.18,187.17,0.7]
[1760846052727,0.38,187.18,187.16,16.06726829]
[1760846052928,3.34043426,187.17,187.13,0.7]
[1760846053130,3.34043426,187.17,187.14,0.7]
[1760846053445,0.38,187.16,187.15,16.06726829]
[1760846054042,3.72043426,187.16,187.14,0.7]
[1760846054338,3.72043426,187.16,187.14,16.76726829]
[1760846054541,3.72043426,187.16,187.14,0.7]
[1760846055528,3.34043426,187.15,187.12,0.71]
[1760846055734,22.88,187.17,187.12,0.71]
[1760846055735,3.72043426,187.14,187.12,0.71]
[1760846055927,3.34043426,187.13,187.11,16.07157206]
[1760846056134,0.38,187.12,187.1,0.71]
[1760846056345,3.72043426,187.12,187.1,16.07157206]
[1760846056543,3.34043426,187.11,187.09,0.71]
[1760846056724,0.38,187.12,187.1,0.71]
[1760846057945,3.72043426,187.12,187.09,16.07157206]
[1760846058145,3.34043426,187.11,187.09,0.71]
[1760846058447,3.72043426,187.1,187.08,16.78157206]
[1760846058649,3.72043426,187.1,187.08,0.71]
[1760846059029,3.72043426,187.1,187.07,5.34613532]
[1760846059446,3.72043426,187.1,187.08,0.71]
[1760846059648,3.72043426,187.1,187.07,5.34613532]
[1760846059859,0.38,187.1,187.08,0.71]
[1760846060156,3.72043426,187.12,187.09,0.71]
[1760846060456,3.72043426,187.12,187.1,0.71]
[1760846061747,3.72043426,187.12,187.08,0.71]
[1760846061953,3.34043426,187.11,187.09,0.71]
[1760846062156,0.38,187.1,187.08,0.71]
[1760846062725,3.72043426,187.1,187.07,5.34613532]
[1760846063060,3.72043426,187.1,187.08,0.71]
[1760846063559,3.34043426,187.09,187.07,5.34613532]
[1760846063741,0.38,187.08,187.06,0.91]
[1760846063928,0.38,187.08,187.07,0.71]
[1760846064749,0.38,187.09,187.07,0.71]
[1760846068249,0.38,187.09,187.06,5.54613532]
[1760846068443,0.38,187.09,187.07,0.71]
[1760846068643,0.38,187.09,187.08,0.71]
[1760846069351,3.34043426,187.1,187.08,0.71]
[1760846069655,0.38,187.09,187.08,0.71]
[1760846070742,0.38,187.09,187.06,6.45613532]
[1760846070946,0.38,187.09,187.07,0.71]
[1760846073640,0.38,187.09,187.08,0.71]
[1760846074137,0.38,187.09,187.06,0.91]
[1760846074341,0.38,187.09,187.07,0.71]
[1760846074757,3.34043426,187.1,187.08,0.71]
[1760846074958,0.38,187.09,187.08,0.71]
[1760846075159,3.72043426,187.09,187.08,0.71]
[1760846075663,0.38,187.11,187.08,0.71]
[1760846077365,3.72043426,187.11,187.08,0.71]
[1760846077835,0.38,187.11,187.08,0.71]
[1760846078738,102.48,187.12,187.08,0.71]
[1760846079043,102.48,187.12,187.08,6.05527103]
[1760846079244,102.48,187.12,187.09,0.71]
[1760846079964,3.34043426,187.11,187.08,0.71]
[1760846080253,0.38,187.1,187.08,0.71]
[1760846080841,0.38,187.1,187.06,0.2]
[1760846081044,0.38,187.1,187.07,0.71]
[1760846081446,0.38,187.11,187.07,0.71]
[1760846082176,102.48,187.12,187.07,0.71]
[1760846083055,105.82043426,187.12,187.07,0.71]
[1760846083969,105.82043426,187.12,187.07,9.39685656]
[1760846084172,105.82043426,187.12,187.08,0.66]
[1760846085968,102.48,187.12,187.08,0.66]
[1760846088090,102.1,187.12,187.1,3.34043426]
[1760846088372,102.1,187.12,187.11,0.66]
[1760846093255,22.88,187.14,187.11,0.66]
[1760846093480,22.88,187.14,187.12,0.66]
[1760846093786,23.26,187.14,187.12,0.66]
[1760846094276,0.38,187.16,187.12,0.66]
[1760846099998,102.48,187.17,187.12,0.66]
[1760846100180,105.82043426,187.17,187.12,0.66]
[1760846101405,105.82043426,187.17,187.13,0.66]
[1760846102294,102.1,187.17,187.13,0.66]
[1760846102492,102.54,187.17,187.13,0.66]
[1760846103391,102.1,187.17,187.13,0.66]
[1760846104515,102.1,187.17,187.14,0.66]
[1760846104696,102.54,187.17,187.14,0.66]
[1760846104885,102.1,187.17,187.15,0.66]
[1760846106200,26.22043426,187.21,187.15,0.66]
[1760846106403,102.1,187.24,187.15,20.06598169]
[1760846106404,22.88,187.19,187.15,20.06598169]
[1760846106603,22.88,187.19,187.16,0.66]
[1760846107207,0.44,187.22,187.17,3.34043426]
[1760846107510,0.44,187.22,187.18,4.06043426]
[1760846107806,0.44,187.22,187.19,0.72]
[1760846108009,0.44,187.22,187.18,3.34043426]
[1760846108203,0.44,187.23,187.19,0.72]
[1760846108609,0.44,187.23,187.2,0.72]
[1760846109621,102.54,187.24,187.21,0.72]
[1760846110298,102.1,187.24,187.22,0.72]
[1760846111309,0.44,187.26,187.22,0.72]
[1760846111996,0.44,187.26,187.21,10.68388365]
[1760846112196,0.44,187.26,187.22,0.72]
[1760846112412,0.44,187.26,187.21,5.34230897]
[1760846112719,0.44,187.26,187.23,0.72]
[1760846113224,3.78043426,187.26,187.23,0.72]
[1760846115832,3.78043426,187.26,187.24,0.66]
[1760846116116,0.44,187.26,187.24,0.66]
[1760846116320,0.44,187.26,187.21,5.34230897]
[1760846116526,3.78043426,187.26,187.22,0.66]
[1760846117426,3.34043426,187.24,187.21,5.34230897]
[1760846117601,3.34043426,187.22,187.18,0.66]
[1760846117917,3.34043426,187.2,187.17,5.34230897]
[1760846118110,3.34043426,187.19,187.16,0.66]
[1760846118307,3.34043426,187.19,187.16,6.00326332]
[1760846118702,3.34043426,187.19,187.16,5.34326332]
[1760846118906,3.34043426,187.19,187.17,0.66]
[1760846120009,3.34043426,187.19,187.16,5.34326332]
[1760846120230,3.34043426,187.18,187.15,0.66]
[1760846120415,3.34043426,187.18,187.16,0.66]
[1760846121419,3.34043426,187.18,187.14,16.06726829]
[1760846121613,3.34043426,187.18,187.15,0.66]
[1760846121813,3.34043426,187.17,187.14,16.06726829]
[1760846122134,3.34043426,187.16,187.14,0.66]
[1760846122622,3.34043426,187.17,187.14,0.66]
[1760846125133,23.32,187.2,187.15,0.66]
[1760846125429,23.32,187.2,187.16,0.66]
[1760846125631,3.34043426,187.19,187.16,0.66]
[1760846125926,0.44,187.18,187.16,0.66]
[1760846127622,3.78043426,187.18,187.16,0.66]
[1760846127823,3.78043426,187.18,187.14,0.66]
[1760846128017,3.78043426,187.18,187.13,16.06726829]
[1760846128213,3.78043426,187.18,187.14,0.66]
[1760846128419,3.78043426,187.18,187.15,0.66]
[1760846129019,3.78043426,187.18,187.12,21.41306253]
[1760846129202,3.34043426,187.17,187.13,0.66]
[1760846129824,0.44,187.16,187.13,0.66]
[1760846131024,3.34043426,187.14,187.12,16.06898952]
[1760846131228,0.44,187.13,187.06,0.2]
[1760846131525,22.88,187.13,187.07,3.34043426]
[1760846131723,0.44,187.13,187.08,0.66]
[1760846132118,3.34043426,187.15,187.08,4.00043426]
[1760846132423,0.44,187.14,187.09,0.66]
[1760846132628,0.44,187.19,187.11,3.34043426]
[1760846132817,3.34043426,187.18,187.12,0.66]
[1760846133019,3.78043426,187.17,187.12,0.66]
[1760846133414,3.34043426,187.16,187.12,0.66]
[1760846133728,3.34043426,187.14,187.09,0.66]
[1760846133910,3.34043426,187.11,187.09,0.66]
[1760846134114,3.34043426,187.1,187.07,0.66]
[1760846135406,0.44,187.17,187.08,4.00043426]
[1760846135622,22.88,187.17,187.09,0.66]
[1760846135834,3.34043426,187.14,187.09,0.66]
[1760846136027,0.44,187.16,187.09,4.00043426]
[1760846136222,3.34043426,187.14,187.1,0.66]
[1760846137328,16.21778489,187.22,187.1,0.66]
[1760846137329,0.44,187.18,187.12,3.34043426]
[1760846137632,3.34043426,187.18,187.13,0.66]
[1760846138534,3.34043426,187.18,187.14,0.66]
[1760846138837,3.34043426,187.18,187.15,0.66]
[1760846139132,3.34043426,187.18,187.12,8.68441105]
[1760846139316,0.44,187.19,187.16,0.66]
[1760846139513,3.34043426,187.17,187.16,0.66]
[1760846140231,3.34043426,187.18,187.16,0.66]
[1760846141835,3.34043426,187.18,187.14,0.66]
[1760846142026,0.44,187.17,187.14,0.66]
[1760846142338,3.34043426,187.18,187.15,0.66]
[1760846142513,3.34043426,187.18,187.12,3.34043426]
[1760846142714,3.34043426,187.18,187.13,6.00386821]
[1760846142916,3.34043426,187.18,187.14,0.66]
[1760846143530,0.44,187.2,187.14,0.66]
[1760846143727,3.34043426,187.21,187.15,3.87476501]
[1760846143917,0.44,187.23,187.16,0.65]
[1760846144118,3.34043426,187.2,187.16,0.65]
[1760846144542,0.44,187.23,187.16,0.65]
[1760846144721,3.34043426,187.2,187.16,0.65]
[1760846145443,3.34043426,187.2,187.16,5.99300098]
[1760846145643,3.34043426,187.2,187.16,5.34300098]
[1760846145847,3.34043426,187.2,187.17,0.65]
[1760846146040,3.34043426,187.2,187.18,0.65]
[1760846147045,0.44,187.23,187.18,0.65]
[1760846147242,3.34043426,187.2,187.18,0.65]
[1760846150241,102.1,187.24,187.19,0.65]
[1760846150647,102.1,187.24,187.19,3.99043426]
[1760846151147,102.1,187.24,187.2,0.65]
[1760846151333,3.34043426,187.25,187.2,0.65]
[1760846151531,3.34043426,187.25,187.2,3.99043426]
[1760846151854,22.88,187.27,187.21,1.1841595]
[1760846152143,3.34043426,187.26,187.22,0.65]
[1760846152340,3.34043426,187.26,187.22,5.99129261]
[1760846152644,3.34043426,187.26,187.23,0.65]
[1760846152854,3.34043426,187.27,187.24,0.65]
[1760846153030,3.34043426,187.28,187.24,0.65]
[1760846153239,3.34043426,187.28,187.24,1.18407391]
[1760846153440,0.1,187.29,187.25,0.65]
[1760846153760,3.44043426,187.29,187.25,0.65]
[1760846153939,0.1,187.29,187.25,0.65]
[1760846154453,0.1,187.29,187.26,0.53401687]
[1760846154651,0.1,187.29,187.26,3.87445113]
[1760846154823,0.1,187.29,187.27,0.65]
[1760846155880,3.44043426,187.29,187.25,0.65]
[1760846156053,3.34043426,187.28,187.25,0.65]
[1760846156355,3.44043426,187.29,187.26,0.65]
[1760846156653,0.1,187.29,187.27,0.65]
[1760846156947,3.44043426,187.29,187.27,0.65]
[1760846157132,3.44043426,187.29,187.25,0.65]
[1760846157337,3.34043426,187.28,187.25,0.65]
[1760846157531,3.34043426,187.27,187.23,5.99097896]
[1760846157726,3.34043426,187.27,187.24,0.65]
[1760846157926,3.34043426,187.28,187.25,0.65]
[1760846159043,3.34043426,187.28,187.23,5.99097896]
[1760846159240,3.34043426,187.27,187.24,0.65]
[1760846161049,3.34043426,187.27,187.23,5.34098456]
[1760846161225,0.1,187.29,187.23,5.34098456]
[1760846161425,3.34043426,187.27,187.23,5.99098456]
[1760846161630,3.34043426,187.27,187.24,0.65]
[1760846161829,3.34043426,187.27,187.23,5.34098456]
[1760846162043,3.34043426,187.27,187.25,0.65]
[1760846163553,3.34043426,187.28,187.25,0.65]
[1760846164353,3.34043426,187.28,187.26,0.65]
[1760846164541,0.1,187.29,187.26,0.65]
[1760846164743,3.34043426,187.27,187.23,0.65]
[1760846164955,3.34043426,187.26,187.24,0.65]
[1760846165450,3.34043426,187.26,187.22,28.87123597]
[1760846165748,3.34043426,187.26,187.22,28.22123597]
[1760846165950,3.34043426,187.26,187.23,0.65]
[1760846166125,3.34043426,187.24,187.21,0.65]
[1760846166329,102.1,187.28,187.22,0.65]
[1760846166552,3.34043426,187.24,187.22,0.65]
[1760846168055,102.1,187.28,187.23,0.65]
[1760846168056,102.54,187.28,187.23,0.65]
[1760846168259,102.54,187.28,187.21,9.2161652]
[1760846168260,3.34043426,187.27,187.24,0.65]
[1760846168633,3.34043426,187.27,187.25,0.65]
[1760846169145,0.54,187.29,187.23,3.34043426]
[1760846169342,3.44043426,187.29,187.24,0.7]
[1760846169652,3.34043426,187.26,187.22,0.7]
[1760846169954,3.34043426,187.26,187.23,0.7]
[1760846170133,2.34043426,187.26,187.23,0.7]
[1760846170336,0.54,187.29,187.2,8.68225745]
[1760846170337,3.34043426,187.25,187.2,8.68225745]
[1760846170536,3.34043426,187.23,187.2,0.7]
[1760846170839,3.34043426,187.23,187.18,5.34218538]
[1760846170840,3.34043426,187.21,187.18,0.7]
[1760846171354,3.34043426,187.2,187.17,5.3427337]
[1760846171535,3.34043426,187.2,187.17,6.0427337]
[1760846171736,3.34043426,187.19,187.17,0.7]
[1760846172649,3.34043426,187.22,187.18,0.7]
[1760846173046,3.34043426,187.22,187.16,9.2177161]
[1760846173347,3.34043426,187.21,187.17,0.7]
[1760846173649,3.34043426,187.21,187.18,0.7]
[1760846173851,3.34043426,187.2,187.18,0.7]
[1760846174033,3.34043426,187.21,187.18,6.0424216]
[1760846174229,3.34043426,187.19,187.15,0.7]
[1760846174433,0.44,187.24,187.12,52.30444426]
[1760846174434,3.34043426,187.16,187.12,0.7]
[1760846174651,22.88,187.21,187.13,0.7]
[1760846174652,3.34043426,187.15,187.13,0.7]
[1760846175137,26.66043426,187.2,187.08,27.04]
[1760846175138,3.34043426,187.14,187.08,10.87647521]
[1760846175336,3.34043426,187.11,187.08,6.04529833]
[1760846175737,3.34043426,187.11,187.09,0.7]
[1760846176048,0.44,187.19,187.09,0.7]
[1760846176252,3.34043426,187.11,187.09,0.7]
[1760846176438,3.34043426,187.11,187.08,5.34529833]
[1760846176439,3.34043426,187.11,187.1,0.7]
[1760846176968,3.34043426,187.11,187.08,0.7]
[1760846177137,3.34043426,187.09,187.06,0.9]
[1760846177335,3.34043426,187.09,187.07,0.7]
[1760846177537,3.34043426,187.11,187.08,0.7]
[1760846177848,3.34043426,187.11,187.09,0.7]
[1760846178565,3.34043426,187.12,187.09,0.7]
[1760846178852,3.34043426,187.11,187.07,5.34555784]
[1760846179158,3.34043426,187.11,187.09,0.7]
[1760846180460,3.34043426,187.11,187.07,5.34555784]
[1760846180753,3.34043426,187.11,187.08,0.7]
[1760846183354,3.34043426,187.11,187.09,0.7]
[1760846183964,3.34043426,187.1,187.07,0.7]
[1760846184153,3.34043426,187.1,187.08,0.7]
[1760846184642,0.44,187.16,187.09,4.04043426]
[1760846184844,3.34043426,187.16,187.11,3.34043426]
[1760846185038,3.34043426,187.16,187.12,0.7]
[1760846185238,102.1,187.18,187.12,0.7]
[1760846185461,3.34043426,187.16,187.12,0.7]
[1760846185837,3.34043426,187.17,187.12,4.04043426]
[1760846186038,105.44043426,187.18,187.13,4.04043426]
[1760846186353,105.44043426,187.18,187.14,0.7]
[1760846186655,105.44043426,187.18,187.15,0.7]
[1760846186854,3.34043426,187.2,187.16,0.7]
[1760846187055,3.34043426,187.19,187.16,0.7]
[1760846187245,3.34043426,187.2,187.16,0.7]
[1760846187970,3.78043426,187.21,187.16,0.7]
[1760846188166,0.44,187.21,187.17,0.7]
[1760846188370,3.78043426,187.21,187.17,0.7]
[1760846188542,26.22043426,187.22,187.18,0.7]
[1760846188851,26.22043426,187.22,187.16,3.34043426]
[1760846188852,26.22043426,187.22,187.19,0.7]
[1760846189453,3.34043426,187.23,187.17,4.04043426]
[1760846189637,3.34043426,187.22,187.17,0.7]
[1760846189843,3.34043426,187.22,187.18,0.7]
[1760846190860,3.34043426,187.21,187.16,5.34287899]
[1760846191042,3.34043426,187.21,187.16,6.04287899]
[1760846191243,3.34043426,187.21,187.16,5.34287899]
[1760846191449,3.34043426,187.21,187.17,0.7]
[1760846193777,3.34043426,187.21,187.16,5.34287899]
[1760846193959,3.34043426,187.21,187.18,0.7]
[1760846194581,0.44,187.25,187.16,5.34287899]
[1760846194582,3.34043426,187.22,187.19,0.7]
[1760846195042,3.34043426,187.22,187.17,0.7]
[1760846195245,3.34043426,187.22,187.18,0.7]
[1760846198369,3.34043426,187.23,187.19,0.7]
[1760846198575,3.34043426,187.24,187.19,1.23421657]
[1760846198771,3.34043426,187.25,187.2,0.7]
[1760846198949,3.34043426,187.25,187.19,3.87465083]
[1760846198950,3.34043426,187.25,187.21,0.7]
[1760846199153,3.34043426,187.24,187.21,0.7]
[1760846200257,3.34043426,187.23,187.17,0.53427365]
[1760846200453,3.34043426,187.21,187.16,6.04302201]
[1760846200777,3.34043426,187.2,187.17,0.7]
[1760846201853,0.44,187.23,187.18,0.7]
[1760846201854,3.34043426,187.21,187.18,0.7]
[1760846202560,0.44,187.23,187.18,0.7]
[1760846202861,3.34043426,187.23,187.19,0.7]
[1760846203979,3.34043426,187.23,187.2,0.66]
[1760846204157,3.34043426,187.23,187.18,5.34240541]
[1760846204360,3.34043426,187.23,187.19,0.66]
[1760846204878,3.34043426,187.23,187.2,0.66]
[1760846206483,3.34043426,187.22,187.2,0.66]
[1760846210273,22.88,187.24,187.2,0.66]
[1760846210474,3.34043426,187.22,187.2,0.66]
[1760846211769,0.44,187.26,187.2,0.66]
[1760846211770,3.34043426,187.23,187.2,0.66]
[1760846212371,3.34043426,187.23,187.19,5.34207937]
[1760846212582,3.34043426,187.23,187.2,0.66]
[1760846212781,3.34043426,187.24,187.21,0.66]
[1760846212980,3.34043426,187.24,187.22,0.66]
[1760846213584,3.34043426,187.25,187.2,5.87604335]
[1760846213888,3.34043426,187.26,187.23,0.66]
[1760846217478,3.34043426,187.26,187.21,9.34197454]
[1760846217693,3.34043426,187.26,187.21,5.34154028]
[1760846217892,3.34043426,187.26,187.22,0.66]
[1760846219006,3.34043426,187.27,187.23,0.66]
[1760846219301,3.34043426,187.28,187.23,0.66]
[1760846220299,3.34043426,187.27,187.24,0.66]
[1760846220604,3.34043426,187.26,187.24,0.66]
[1760846225110,3.34043426,187.26,187.21,6.00157247]
[1760846225309,3.34043426,187.25,187.21,5.34157247]
[1760846225490,3.34043426,187.23,187.19,6.00216571]
[1760846225693,3.34043426,187.23,187.2,0.66]
[1760846227508,3.34043426,187.22,187.2,0.66]
[1760846228608,3.34043426,187.23,187.21,0.71]
[1760846229188,3.34043426,187.23,187.2,0.71]
[1760846229606,3.34043426,187.23,187.21,0.71]
[1760846229812,3.34043426,187.23,187.19,5.34211783]
[1760846230006,3.34043426,187.23,187.2,0.71]
[1760846231893,3.34043426,187.23,187.21,0.71]
[1760846232101,3.34043426,187.23,187.19,5.34211783]
[1760846232305,3.34043426,187.23,187.2,0.71]
[1760846233919,3.34043426,187.23,187.21,0.66]
[1760846234127,3.34043426,187.24,187.21,0.66]
[1760846234621,3.34043426,187.24,187.22,0.66]
[1760846237917,3.34043426,187.24,187.18,3.87467937]
[1760846237918,3.34043426,187.24,187.21,0.66]
[1760846239020,3.34043426,187.24,187.22,0.66]
[1760846239610,3.34043426,187.24,187.2,5.34175639]
[1760846239804,3.34043426,187.24,187.21,0.66]
[1760846241294,3.34043426,187.23,187.19,5.34191895]
[1760846241499,3.34043426,187.22,187.17,5.34254744]
[1760846241719,3.34043426,187.21,187.17,6.00254744]
[1760846242221,3.34043426,187.18,187.14,0.66]
[1760846242424,3.34043426,187.18,187.15,0.66]
[1760846243214,3.34043426,187.2,187.15,6.00321315]
[1760846243516,3.34043426,187.21,187.16,0.66]
[1760846244419,3.34043426,187.21,187.16,6.00286766]
[1760846244608,3.34043426,187.21,187.17,0.66]
[1760846244809,3.34043426,187.21,187.18,0.66]
[1760846246622,3.34043426,187.2,187.18,0.66]
[1760846246815,3.34043426,187.2,187.16,0.66]
[1760846247012,3.34043426,187.19,187.16,0.66]
[1760846247321,3.34043426,187.19,187.14,5.34359303]
[1760846247524,3.34043426,187.19,187.15,0.66]
[1760846247913,3.2770814,187.19,187.15,0.66]
[1760846248525,3.34043426,187.2,187.16,5.34302201]
[1760846248721,3.34043426,187.2,187.17,0.66]
[1760846248927,3.34043426,187.21,187.18,0.66]
[1760846249126,3.34043426,187.21,187.19,0.66]
[1760846249830,0.44,187.23,187.2,0.66]
[1760846250027,3.34043426,187.22,187.18,0.66]
[1760846251934,3.34043426,187.21,187.17,5.34272791]
[1760846252130,3.34043426,187.21,187.18,0.66]
[1760846253126,3.34043426,187.2,187.16,5.34295856]
[1760846253315,3.34043426,187.2,187.16,6.00295856]
[1760846253720,3.34043426,187.2,187.17,0.66]
[1760846254521,3.34043426,187.19,187.17,0.66]
[1760846255220,3.34043426,187.2,187.17,0.66]
[1760846255732,3.34043426,187.2,187.18,0.66]